bitfinex/quotes_SOLUSD_20240916
["timestamp","ask_amount","ask_price","bid_price","bid_amount"]
[1726509682686,7.5867,131.81,131.77,18.9718]
[1726509683007,7.5867,131.81,131.77,26.5603]
[1726509683306,7.5861,131.82,131.77,26.5603]
[1726509683607,1.32159092,131.85,131.77,26.5603]
[1726509683608,7.5868,131.81,131.77,26.5603]
[1726509683983,7.5868,131.81,131.77,18.9718]
[1726509683984,7.5867,131.81,131.77,18.9718]
[1726509684384,7.5872,131.8,131.77,18.9718]
[1726509684787,7.5879,131.79,131.76,16.4392]
[1726509684989,7.5885,131.78,131.75,6.5159886]
[1726509685707,7.5895,131.76,131.75,0.2580886]
[1726509686512,31.366384,131.76,131.75,0.2580886]
[1726509686888,7.5891,131.77,131.75,0.2580886]
[1726509687111,7.5879,131.79,131.75,0.2580886]
[1726509687911,23.776884,131.8,131.76,18.9732]
[1726509688091,7.5876,131.8,131.76,18.9732]
[1726509689018,23.776884,131.78,131.75,0.2580886]
[1726509689310,7.5895,131.76,131.75,0.2580886]
[1726509689693,51.366384,131.76,131.75,0.2580886]
[1726509689902,51.367284,131.75,131.71,0.2549506]
[1726509690502,15.4265,131.77,131.71,19.2352506]
[1726509690700,7.5891,131.77,131.72,7.5916]
[1726509690909,20.0,131.76,131.72,7.5916]
[1726509691487,7.5891,131.77,131.73,7.5912]
[1726509692022,20.0,131.79,131.71,26.8270506]
[1726509692197,7.5899,131.76,131.71,26.8270506]
[1726509692509,23.776884,131.74,131.71,0.2549506]
[1726509693014,7.5899,131.76,131.71,0.2549506]
[1726509693893,23.776884,131.74,131.71,0.2549506]
[1726509694111,31.367584,131.74,131.71,0.2549506]
[1726509694610,25.2866,131.78,131.71,7.8470506]
[1726509694833,7.589,131.77,131.73,7.5911]
[1726509695120,20.8774142,131.85,131.78,7.5878]
[1726509695121,16.2557,131.84,131.78,7.5878]
[1726509695409,16.2557,131.84,131.78,7.5883]
[1726509695410,7.5865,131.82,131.78,7.5883]
[1726509695712,7.5861,131.82,131.78,7.5883]
[1726509695923,23.8411,131.84,131.79,7.5876]
[1726509696085,7.5854,131.84,131.79,7.5876]
[1726509696513,0.2549506,131.85,131.8,18.9673]
[1726509697206,0.2549506,131.85,131.77,18.972]
[1726509697511,0.2549506,131.85,131.76,23.9078]
[1726509697512,7.5871,131.81,131.76,23.9078]
[1726509698103,1.51980975,131.8,131.76,23.9078]
[1726509698402,1.51980975,131.79,131.76,23.9078]
[1726509698608,7.5871,131.81,131.76,23.9078]
[1726509698806,1.51980975,131.8,131.76,23.9078]
[1726509699301,1.51980975,131.79,131.76,7.5894]
[1726509699622,9.10760975,131.79,131.75,13.9751]
[1726509699812,1.51980975,131.78,131.75,13.9751]
[1726509700319,7.5873,131.8,131.75,13.9751]
[1726509700492,7.5868,131.81,131.76,7.5894]
[1726509700697,23.776884,131.83,131.79,7.5876]
[1726509700896,23.776884,131.83,131.75,44.3358]
[1726509700897,7.8393506,131.85,131.8,7.5868]
[1726509701522,7.585,131.84,131.8,7.5868]
[1726509701717,9.10480975,131.84,131.8,7.5868]
[1726509701922,9.10480975,131.84,131.79,7.5876]
[1726509702426,7.5855,131.83,131.79,7.5876]
[1726509702631,1.51980975,131.82,131.79,7.5876]
[1726509703324,1.51980975,131.82,131.78,26.5586]
[1726509703829,1.51980975,131.82,131.75,32.95]
[1726509703830,23.776884,131.81,131.75,32.95]
[1726509704206,9.10710975,131.8,131.75,32.95]
[1726509704406,1.51980975,131.79,131.75,32.95]
[1726509705022,9.10760975,131.79,131.75,32.95]
[1726509705228,7.5873,131.8,131.75,32.95]
[1726509705423,23.776884,131.79,131.75,32.95]
[1726509705723,23.776884,131.79,131.75,26.5648]
[1726509705900,7.5888,131.78,131.74,7.5906]
[1726509706096,31.365184,131.79,131.75,7.5901]
[1726509706828,31.365184,131.79,131.74,26.5668]
[1726509707124,31.365184,131.79,131.75,7.5901]
[1726509708022,7.5891,131.77,131.74,18.9763]
[1726509708625,7.5897,131.76,131.72,13.6746]
[1726509708810,7.5897,131.76,131.72,6.083]
[1726509709404,7.5897,131.76,131.72,13.6747]
[1726509709714,7.5897,131.76,131.72,7.5917]
[1726509710111,7.5891,131.77,131.73,7.5911]
[1726509711230,7.5885,131.78,131.74,7.5905]
[1726509711828,9.10880975,131.77,131.73,26.5689]
[1726509712024,1.51980975,131.76,131.73,26.5689]
[1726509712225,7.589,131.77,131.73,26.5689]
[1726509713235,9.10940975,131.76,131.73,18.9777]
[1726509713429,1.51980975,131.75,131.73,18.9777]
[1726509714008,9.10990975,131.75,131.71,7.8472506]
[1726509714307,32.88779375,131.74,131.71,0.2549506]
[1726509714514,31.367984,131.74,131.71,0.2549506]
[1726509714717,23.776884,131.74,131.71,0.2549506]
[1726509714913,23.776884,131.74,131.71,7.8471506]
[1726509715118,23.776884,131.77,131.72,18.9791]
[1726509716221,31.366184,131.77,131.73,7.5911]
[1726509716419,23.776884,131.77,131.74,7.5906]
[1726509716623,23.776884,131.77,131.73,7.5911]
[1726509716624,31.365784,131.77,131.73,7.5911]
[1726509716935,18.9678,131.81,131.74,18.9765]
[1726509717117,7.5879,131.79,131.75,7.59]
[1726509718113,7.5873,131.8,131.76,7.5892]
[1726509718438,7.5871,131.81,131.76,7.5892]
[1726509718735,9.10710975,131.8,131.76,7.5892]
[1726509719719,1.51980975,131.79,131.75,7.5897]
[1726509719939,9.10710975,131.8,131.76,7.5895]
[1726509720333,7.5859,131.83,131.78,7.588]
[1726509720636,1.51980975,131.82,131.78,7.588]
[1726509720846,0.2549506,131.85,131.76,26.5629]
[1726509720847,7.5868,131.81,131.76,26.5629]
[1726509721138,7.5868,131.81,131.77,7.5887]
[1726509721432,7.5868,131.81,131.76,26.5627]
[1726509721644,7.5882,131.79,131.75,14.1293]
[1726509721848,1.51980975,131.78,131.75,6.5392]
[1726509722016,1.51980975,131.78,131.73,18.9771]
[1726509722017,7.5893,131.77,131.73,18.9771]
[1726509722225,9.10940975,131.76,131.73,18.9771]
[1726509722411,20.49020975,131.79,131.72,6.4848]
[1726509722616,7.591,131.74,131.71,0.2549506]
[1726509722823,9.11110975,131.73,131.71,0.2549506]
[1726509723136,7.5913,131.73,131.71,0.2549506]
[1726509724948,7.5908,131.74,131.71,0.2549506]
[1726509726027,7.5902,131.75,131.71,7.8472506]
[1726509726222,7.5896,131.76,131.71,7.8472506]
[1726509726424,23.776884,131.78,131.71,7.8472506]
[1726509727031,1.51980975,131.77,131.71,0.2549506]
[1726509727321,23.776884,131.72,131.71,0.2549506]
[1726509727530,7.5895,131.76,131.71,0.2549506]
[1726509727715,16.0663,131.8,131.74,7.5901]
[1726509727915,18.9641,131.83,131.74,7.5901]
[1726509727916,72.71671776,131.84,131.74,0.88738136]
[1726509728120,22.71671776,131.84,131.71,6.8258506]
[1726509728339,7.5866,131.82,131.74,7.5901]
[1726509728533,7.5872,131.8,131.73,7.5912]
[1726509728728,7.5872,131.8,131.72,18.9788]
[1726509728729,22.71671776,131.84,131.74,7.5906]
[1726509728925,7.5861,131.82,131.75,7.59]
[1726509729144,1.51980975,131.81,131.75,7.59]
[1726509729329,1.51980975,131.81,131.72,26.5706]
[1726509729330,7.5879,131.79,131.72,26.5706]
[1726509729529,1.51980975,131.78,131.72,26.5706]
[1726509729746,9.10820975,131.78,131.72,18.9788]
[1726509729937,31.365884,131.77,131.71,6.8258506]
[1726509730724,1.51980975,131.76,131.71,6.8258506]
[1726509731142,7.5882,131.79,131.71,14.4182506]
[1726509731351,23.776884,131.78,131.71,25.8062506]
[1726509731520,7.5862,131.82,131.71,44.7879506]
[1726509731719,7.5867,131.81,131.74,26.5663]
[1726509731918,22.71671776,131.84,131.71,6.8258506]
[1726509731919,1.51980975,131.8,131.71,6.8258506]
[1726509732141,91.67981776,131.84,131.71,6.8258506]
[1726509732421,50.0,131.82,131.71,6.8258506]
[1726509732616,7.5889,131.78,131.71,6.8258506]
[1726509732821,1.51980975,131.77,131.71,6.8258506]
[1726509733044,9.10870975,131.77,131.71,6.8258506]
[1726509733346,7.5889,131.77,131.71,6.8258506]
[1726509733548,7.5889,131.77,131.71,14.4182506]
[1726509733735,7.5882,131.79,131.71,6.8258506]
[1726509733924,41.67981776,131.84,131.73,18.978]
[1726509734127,7.5867,131.81,131.75,7.59]
[1726509734528,41.67981776,131.84,131.73,26.5691]
[1726509734529,7.5879,131.79,131.73,26.5691]
[1726509734829,7.5866,131.82,131.75,7.5901]
[1726509735131,7.5866,131.82,131.76,7.5895]
[1726509735333,7.5855,131.83,131.76,7.5895]
[1726509735736,7.5849,131.84,131.78,6.5007]
[1726509736321,9.10540975,131.83,131.78,6.5007]
[1726509736650,7.5862,131.82,131.78,6.5007]
[1726509737144,1.51980975,131.81,131.75,6.5007]
[1726509737361,23.776884,131.84,131.75,6.5007]
[1726509737524,23.776884,131.82,131.75,6.5007]
[1726509737855,1.51980975,131.83,131.74,16.184]
[1726509737856,7.5883,131.79,131.74,16.184]
[1726509738028,1.51980975,131.78,131.72,6.5403]
[1726509738222,7.589,131.77,131.72,6.5403]
[1726509738831,7.59,131.76,131.72,6.5403]
[1726509739235,7.589,131.77,131.72,6.5403]
[1726509739634,23.776884,131.81,131.72,25.5199]
[1726509739840,7.5873,131.8,131.75,7.5898]
[1726509740648,7.5873,131.8,131.73,7.5907]
[1726509741034,7.5881,131.79,131.73,7.5907]
[1726509741228,7.5885,131.78,131.73,7.5907]
[1726509741445,7.5896,131.76,131.72,6.5403]
[1726509741753,1.51980975,131.77,131.72,6.5403]
[1726509741954,1.51980975,131.76,131.72,6.5403]
[1726509742159,7.5906,131.75,131.72,6.5403]
[1726509742463,23.776884,131.8,131.72,6.5403]
[1726509742756,7.5888,131.78,131.72,14.132]
[1726509742955,7.5882,131.79,131.72,6.5403]
[1726509743249,7.5886,131.78,131.73,7.5912]
[1726509744169,7.589,131.77,131.72,14.132]
[1726509744369,7.5895,131.76,131.72,6.5403]
[1726509744543,7.5891,131.77,131.72,6.5403]
[1726509745482,7.5903,131.75,131.72,6.5403]
[1726509745761,42.745684,131.8,131.71,0.2549506]
[1726509745762,7.5917,131.73,131.71,0.2549506]
[1726509745952,7.5908,131.74,131.71,0.2549506]
[1726509746339,7.5918,131.73,131.71,0.2549506]
[1726509746871,7.5908,131.74,131.71,0.2549506]
[1726509747044,23.776884,131.74,131.71,0.2549506]
[1726509747384,31.367984,131.74,131.71,0.2549506]
[1726509747863,7.5918,131.72,131.71,0.2549506]
[1726509748446,7.5913,131.73,131.71,0.2549506]
[1726509749071,18.9748,131.76,131.71,0.2549506]
[1726509749240,7.5907,131.74,131.71,0.2549506]
[1726509749645,7.5914,131.73,131.71,0.2549506]
[1726509750761,7.5918,131.72,131.71,0.2549506]
[1726509750964,7.5914,131.73,131.71,0.2549506]
[1726509751350,7.5907,131.74,131.71,0.2549506]
[1726509751977,23.776884,131.76,131.71,0.2549506]
[1726509752143,7.589,131.77,131.73,7.5912]
[1726509752347,7.5896,131.76,131.71,19.2350506]
[1726509753081,7.5896,131.76,131.71,26.8270506]
[1726509754264,18.9691,131.8,131.73,7.5912]
[1726509754474,17.07336712,131.83,131.74,9.10723153]
[1726509754475,7.5883,131.79,131.74,9.10723153]
[1726509754660,15.5721,131.81,131.74,6.4277]
[1726509754861,15.6683506,131.85,131.75,20.48939018]
[1726509755063,0.2549506,131.85,131.8,7.5872]
[1726509755275,0.2549506,131.85,131.74,21.5788]
[1726509755276,7.5849,131.84,131.79,18.9684]
[1726509756357,7.5864,131.82,131.77,7.5887]
[1726509756562,7.5854,131.84,131.77,7.5887]
[1726509756971,7.5861,131.82,131.77,7.5888]
[1726509757165,7.5861,131.82,131.76,26.5628]
[1726509757676,7.5867,131.81,131.76,26.5628]
[1726509758055,7.5867,131.81,131.76,18.9738]
[1726509758574,7.5861,131.82,131.76,26.563]
[1726509758770,7.5861,131.82,131.77,7.5888]
[1726509760480,23.776884,131.84,131.78,7.5883]
[1726509761379,0.2549506,131.85,131.78,18.97]
[1726509761680,0.2549506,131.85,131.8,14.1178]
[1726509761883,7.8393506,131.85,131.8,14.1178]
[1726509762084,9.10500975,131.84,131.8,6.5311]
[1726509762266,1.51980975,131.84,131.78,18.97]
[1726509762475,7.5866,131.82,131.77,14.12]
[1726509762657,7.5855,131.83,131.78,7.5879]
[1726509762863,7.5854,131.84,131.79,7.5878]
[1726509763688,7.5854,131.84,131.74,15.1511]
[1726509764188,7.8393506,131.85,131.75,23.776884]
[1726509765192,7.8393506,131.85,131.8,7.5868]
[1726509765793,7.8393506,131.85,131.81,7.5864]
[1726509765794,0.2549506,131.85,131.81,7.5864]
[1726509765958,0.2549506,131.85,131.81,23.9802]
[1726509767070,7.8393506,131.85,131.81,23.9802]
[1726509767485,7.8393506,131.85,131.81,16.3938]
[1726509767962,0.2549506,131.85,131.81,23.9802]
[1726509768587,0.2549506,131.85,131.82,7.586]
[1726509769071,0.2549506,131.85,131.83,7.5854]
[1726509769489,0.2549506,131.85,131.84,7.5849]
[1726509771584,0.2549506,131.85,131.83,18.9632]
[1726509771775,0.2549506,131.85,131.82,7.5859]
[1726509773003,7.585,131.84,131.81,16.3938]
[1726509773674,7.8394506,131.85,131.81,25.49733849]
[1726509773876,7.8394506,131.85,131.81,23.9803]
[1726509774099,7.8394506,131.85,131.82,1.51647358]
[1726509774468,0.2549506,131.85,131.81,23.9803]
[1726509774892,0.2549506,131.85,131.82,18.9648]
[1726509775188,0.2549506,131.85,131.83,7.5851]
[1726509776679,0.2549506,131.85,131.84,9.1014646]
[1726509776875,0.2549506,131.85,131.84,7.5849]
[1726509777683,0.2549506,131.85,131.83,9.10117436]
[1726509777878,0.2549506,131.85,131.83,7.5853]
[1726509779491,0.2549506,131.85,131.82,26.5505]
[1726509780595,0.2549506,131.85,131.84,7.5849]
[1726509780969,0.2549506,131.85,131.84,9.09977808]
[1726509781711,0.2549506,131.85,131.84,55.40166208]
[1726509782006,0.2549506,131.85,131.84,53.886784]
[1726509782193,0.2549506,131.85,131.84,30.1099]
[1726509788790,0.2549506,131.85,131.84,53.886784]
[1726509789390,0.2549506,131.85,131.84,30.1099]
[1726509791587,0.2549506,131.85,131.83,7.5854]
[1726509791787,0.2549506,131.85,131.84,7.5849]
[1726509794294,0.2549506,131.85,131.83,7.5854]
[1726509794496,0.2549506,131.85,131.84,7.5849]
[1726509795103,0.2549506,131.85,131.82,18.9648]
[1726509795104,0.2549506,131.85,131.83,7.5853]
[1726509795401,0.2549506,131.85,131.82,18.9648]
[1726509796018,0.2549506,131.85,131.84,7.5849]
[1726509796317,0.2549506,131.85,131.82,26.5508]
[1726509796619,0.2549506,131.85,131.83,7.5854]
[1726509797704,0.2549506,131.85,131.82,26.5507]
[1726509798217,0.2549506,131.85,131.83,7.5854]
[1726509799015,0.2549506,131.85,131.84,7.5849]
[1726509800226,0.2549506,131.85,131.84,9.09442984]
[1726509800524,0.2549506,131.85,131.84,7.5849]
[1726509800692,0.2549506,131.85,131.84,9.09439109]
[1726509801121,0.2549506,131.85,131.84,7.5849]
[1726509806135,0.2549506,131.85,131.84,71.17849352]
[1726509806510,0.2549506,131.89,131.84,71.17849352]
[1726509806511,0.2549506,131.89,131.88,26.5392]
[1726509808931,0.2549506,131.89,131.85,26.5436]
[1726509809102,7.8370506,131.89,131.85,26.5436]
[1726509810412,0.2549506,131.89,131.86,7.5836]
[1726509814613,0.2549506,131.89,131.87,7.583]
[1726509815310,7.8371506,131.89,131.85,18.9597]
[1726509815705,0.2549506,131.89,131.85,18.9597]
[1726509816121,0.2549506,131.89,131.86,7.5837]
[1726509816809,0.2549506,131.89,131.87,7.583]
[1726509817230,0.2549506,131.89,131.88,7.5826]
[1726509818307,0.2549506,131.89,131.87,26.5407]
[1726509820044,0.2549506,131.89,131.83,5.69078912]
[1726509820355,7.5837,131.87,131.83,7.5853]
[1726509820521,6.3022506,131.89,131.81,26.5519]
[1726509820522,7.5838,131.86,131.81,26.5519]
[1726509820725,16.0206,131.88,131.81,26.5519]
[1726509820731,7.5845,131.85,131.81,26.5519]
[1726509820933,7.5845,131.85,131.81,18.9654]
[1726509821136,34.9776,131.88,131.81,7.5866]
[1726509821335,7.5842,131.86,131.81,7.5866]
[1726509821621,7.5842,131.86,131.8,18.9675]
[1726509821622,7.5851,131.84,131.8,26.5546]
[1726509821838,7.5851,131.84,131.8,18.9675]
[1726509822045,7.5861,131.82,131.78,7.5883]
[1726509822252,23.776884,131.85,131.77,18.9715]
[1726509822253,1.51980975,131.84,131.77,18.9715]
[1726509822540,7.5879,131.79,131.75,0.2549506]
[1726509824022,23.776884,131.81,131.75,0.2549506]
[1726509825143,7.5889,131.78,131.75,0.2549506]
[1726509826329,22.0679,131.83,131.75,0.2549506]
[1726509826550,7.5871,131.81,131.76,7.5892]
[1726509826847,7.5873,131.8,131.75,26.8193506]
[1726509827046,7.5867,131.81,131.75,19.2293506]
[1726509827256,22.0679,131.83,131.78,7.5882]
[1726509827623,29.6535,131.83,131.78,7.5882]
[1726509827941,7.5862,131.82,131.78,7.5882]
[1726509828440,7.5862,131.82,131.77,18.9717]
[1726509828441,7.5867,131.81,131.77,18.9717]
[1726509828849,7.5862,131.82,131.77,26.5605]
[1726509829035,7.5862,131.82,131.78,7.5883]
[1726509829653,7.5868,131.81,131.77,26.5606]
[1726509830424,7.5873,131.8,131.76,7.5894]
[1726509831753,7.5865,131.82,131.77,7.5888]
[1726509832049,22.0679,131.83,131.77,9.10394733]
[1726509832254,22.0679,131.83,131.77,7.5888]
[1726509833152,7.5862,131.82,131.78,7.5882]
[1726509833356,23.6062,131.83,131.79,7.5877]
[1726509833560,23.6062,131.83,131.77,7.5885]
[1726509833561,7.5861,131.82,131.77,7.5885]
[1726509833760,7.5868,131.81,131.76,26.5627]
[1726509833930,7.5876,131.8,131.76,26.5627]
[1726509834531,7.5878,131.79,131.76,18.9734]
[1726509835033,7.5874,131.8,131.76,18.9734]
[1726509835228,7.5874,131.8,131.75,7.8449506]
[1726509835229,7.5878,131.79,131.75,0.2549506]
[1726509835562,7.5871,131.81,131.75,20.14469635]
[1726509835734,7.5871,131.81,131.75,19.2297506]
[1726509835937,7.5871,131.81,131.77,7.5885]
[1726509836335,16.0206,131.83,131.77,18.9721]
[1726509836649,7.5851,131.84,131.79,18.969]
[1726509837441,7.5851,131.84,131.8,7.5868]
[1726509837662,29.3822,131.86,131.81,7.5862]
[1726509837852,23.3232,131.86,131.81,18.9663]
[1726509838040,23.3232,131.86,131.82,7.586]
[1726509838371,7.5839,131.86,131.82,7.586]
[1726509838655,7.5827,131.88,131.84,7.5847]
[1726509838833,7.8371506,131.89,131.85,7.5842]
[1726509839033,7.8371506,131.89,131.86,1.16807767]
[1726509839458,7.8371506,131.89,131.84,7.5847]
[1726509839835,0.2549506,131.89,131.85,18.9603]
[1726509840159,0.2549506,131.89,131.87,7.5829]
[1726509840654,0.2549506,131.89,131.88,7.5826]
[1726509841031,0.2549506,131.89,131.87,18.9574]
[1726509841762,0.2549506,131.89,131.84,18.9616]
[1726509842064,7.5827,131.88,131.84,18.9616]
[1726509842279,0.2549506,131.89,131.81,18.9659]
[1726509842565,0.2549506,131.89,131.83,7.585]
[1726509842566,7.5832,131.87,131.83,7.585]
[1726509842764,7.5839,131.86,131.82,7.586]
[1726509842934,7.5839,131.86,131.81,26.5525]
[1726509843351,0.2549506,131.89,131.83,7.5851]
[1726509843555,7.5832,131.87,131.82,7.586]
[1726509843736,7.5845,131.85,131.81,18.9659]
[1726509845951,6.0547,131.86,131.79,7.5876]
[1726509846156,7.5851,131.84,131.79,7.5876]
[1726509847738,6.0547,131.86,131.78,18.9705]
[1726509847739,25.29669375,131.85,131.78,26.5588]
[1726509847939,41.45869375,131.85,131.75,40.7572506]
[1726509848138,7.5871,131.81,131.76,7.5891]
[1726509848742,7.5871,131.81,131.77,7.5889]
[1726509848743,7.5867,131.81,131.77,7.5889]
[1726509848941,58.900384,131.85,131.75,19.2293506]
[1726509848942,7.5882,131.79,131.75,19.2293506]
[1726509849148,1.51980975,131.8,131.75,0.2549506]
[1726509849363,1.51980975,131.79,131.75,0.2549506]
[1726509849662,1.51980975,131.81,131.75,0.2549506]
[1726509849849,7.5888,131.78,131.75,0.2549506]
[1726509850376,1.51980975,131.77,131.75,0.2549506]
[1726509850755,9.10930975,131.76,131.75,0.2549506]
[1726509851074,7.5895,131.76,131.75,0.2549506]
[1726509851442,31.366384,131.76,131.75,0.2549506]
[1726509851844,32.88619375,131.76,131.75,0.2549506]
[1726509853271,31.366384,131.76,131.75,0.2549506]
[1726509853467,32.88619375,131.76,131.75,0.2549506]
[1726509854045,32.88619375,131.76,131.67,7.8491506]
[1726509854046,23.776884,131.75,131.68,7.594]
[1726509854246,23.776884,131.75,131.67,0.2549506]
[1726509854247,7.5918,131.72,131.67,7.8496506]
[1726509854964,7.5918,131.72,131.68,7.594]
[1726509856858,7.5918,131.72,131.67,7.8495506]
[1726509857058,7.5918,131.72,131.67,0.2549506]
[1726509858171,7.5918,131.72,131.67,7.8491506]
[1726509858551,7.5918,131.72,131.67,0.2549506]
[1726509860751,31.368684,131.72,131.67,0.2549506]
[1726509860958,46.636884,131.72,131.67,0.2549506]
[1726509861158,47.96055603,131.72,131.67,0.2549506]
[1726509861459,23.776884,131.71,131.67,0.2549506]
[1726509861652,1.51980975,131.7,131.67,0.2549506]
[1726509861858,15.2682,131.72,131.67,0.2549506]
[1726509862178,7.5937,131.69,131.67,0.2549506]
[1726509862379,7.5941,131.68,131.67,0.2549506]
[1726509864662,7.5936,131.69,131.67,0.2549506]
[1726509865286,7.5932,131.7,131.67,0.2549506]
[1726509865485,15.2682,131.72,131.67,0.2549506]
[1726509865663,7.5934,131.7,131.67,0.2549506]
[1726509865859,1.51980975,131.71,131.67,0.2549506]
[1726509866193,7.5941,131.68,131.67,0.2549506]
[1726509868589,31.370984,131.68,131.67,0.2549506]
[1726509869274,7.5963,131.65,131.63,0.2549506]
[1726509869469,23.776884,131.68,131.63,0.2549506]
[1726509869470,25.29669375,131.67,131.63,0.2549506]
[1726509870259,7.5964,131.64,131.63,0.2549506]
[1726509874076,7.5987,131.6,131.59,0.2549506]
[1726509874275,15.3933,131.64,131.59,0.2549506]
[1726509874276,7.5983,131.61,131.59,0.2549506]
[1726509874484,7.5987,131.6,131.59,0.2549506]
[1726509876180,31.375584,131.6,131.59,0.2549506]
[1726509876498,32.89539375,131.6,131.59,0.2549506]
[1726509877466,7.601,131.56,131.55,0.2549506]
[1726509878389,9.12080975,131.56,131.55,0.2549506]
[1726509878592,7.601,131.56,131.55,0.2549506]
[1726509878763,7.6006,131.57,131.55,0.2549506]
[1726509879105,23.776884,131.6,131.53,0.3609808]
[1726509879106,7.601,131.56,131.53,0.3609808]
[1726509880689,7.6017,131.55,131.53,0.3609808]
[1726509881194,7.6012,131.56,131.53,0.3609808]
[1726509882598,21.8292,131.61,131.54,7.6017]
[1726509883189,7.5995,131.59,131.54,7.6017]
[1726509883388,7.5999,131.58,131.54,7.6017]
[1726509883693,7.5994,131.59,131.55,7.6016]
[1726509884981,15.6669,131.61,131.55,19.0037]
[1726509884982,7.5983,131.61,131.55,19.0037]
[1726509885382,7.5983,131.61,131.57,7.6001]
[1726509886193,7.5977,131.62,131.58,7.5999]
[1726509887495,29.90627959,131.66,131.57,19.0008]
[1726509888677,7.5966,131.64,131.6,7.5984]
[1726509888873,7.5959,131.65,131.61,7.598]
[1726509889092,7.5954,131.66,131.62,7.5975]
[1726509889492,7.5945,131.68,131.63,7.5968]
[1726509890101,14.0191,131.7,131.64,1.51760041]
[1726509890291,16.70416251,131.71,131.64,1.51760041]
[1726509890292,7.5941,131.69,131.64,7.5964]
[1726509890492,15.3802,131.71,131.63,26.5889]
[1726509890796,7.5943,131.68,131.63,26.5889]
[1726509892378,7.5949,131.67,131.63,26.5889]
[1726509892578,44.27979375,131.7,131.6,18.9961]
[1726509892899,7.5963,131.65,131.61,7.598]
[1726509893595,7.5954,131.66,131.62,7.5972]
[1726509894020,7.5949,131.67,131.63,7.5968]
[1726509894200,7.5942,131.68,131.64,7.5963]
[1726509894387,7.5936,131.69,131.64,7.5963]
[1726509894717,7.5931,131.7,131.64,18.9904]
[1726509894895,15.3802,131.71,131.65,7.5957]
[1726509895103,15.3802,131.71,131.64,7.5963]
[1726509895490,7.5934,131.7,131.65,7.5957]
[1726509895686,7.5934,131.7,131.66,7.5952]
[1726509896097,0.3459858,131.72,131.65,18.989]
[1726509896098,1.51980975,131.71,131.65,18.989]
[1726509896296,1.51980975,131.7,131.62,18.9936]
[1726509897018,23.776884,131.69,131.62,18.9936]
[1726509897219,1.51980975,131.68,131.62,18.9936]
[1726509897536,7.5955,131.66,131.62,26.5909]
[1726509897722,7.5959,131.65,131.61,7.598]
[1726509898596,7.5964,131.64,131.6,7.5986]
[1726509898793,58.593484,131.69,131.61,7.5979]
[1726509898794,7.596,131.65,131.61,7.5979]
[1726509899923,7.5965,131.64,131.6,7.5986]
[1726509900109,58.593484,131.69,131.59,41.1269]
[1726509900292,23.776884,131.66,131.56,6.4324]
[1726509900616,23.776884,131.64,131.56,25.4342]
[1726509900814,6.4792,131.67,131.55,53.703]
[1726509900815,7.5995,131.59,131.55,15.6972]
[1726509901027,23.776884,131.62,131.55,15.6972]
[1726509901521,9.11810975,131.61,131.56,7.6009]
[1726509901825,1.51980975,131.61,131.57,7.6004]
[1726509902127,23.776884,131.62,131.55,34.7008]
[1726509902298,1.51980975,131.61,131.54,7.6019]
[1726509902506,1.51980975,131.6,131.54,7.6019]
[1726509902731,7.5995,131.59,131.55,7.6016]
[1726509903219,42.771784,131.62,131.57,7.6001]
[1726509903220,7.5978,131.62,131.57,7.6001]
[1726509903739,7.5978,131.62,131.56,19.0016]
[1726509903740,7.5969,131.64,131.59,7.5992]
[1726509903898,7.596,131.65,131.6,18.9964]
[1726509904099,6.4792,131.67,131.62,7.5976]
[1726509904100,7.5954,131.66,131.62,7.5976]
[1726509904318,7.5953,131.66,131.62,26.5912]
[1726509904601,15.8322,131.69,131.63,7.5969]
[1726509905328,7.5951,131.67,131.62,26.591]
[1726509905537,7.5954,131.66,131.62,26.591]
[1726509907007,7.5968,131.64,131.59,35.362]
[1726509907322,7.5968,131.64,131.59,42.9612]
[1726509907703,7.5973,131.63,131.59,35.362]
[1726509907911,23.776884,131.66,131.58,7.5998]